[Event "*** Titled Tuesday Blitz"]
[Site "Chess.com"]
[Date "2020.04.28"]
[Round "5"]
[White "StephenDedalus83"]
[Black "Kildepiotr"]
[Result "0-1"]
[WhiteElo "2782"]
[BlackElo "2577"]
[TimeControl "180+1"]
[EndTime "10:55:24 PDT"]
[Termination "Kildepiotr won by resignation"]

1. e4 {[%clk 0:03:00.9]} 1... g6 {[%clk 0:02:59.2]} 2. d4 {[%clk 0:02:59.9]}
2... Bg7 {[%clk 0:02:59.7]} 3. Nc3 {[%clk 0:02:59.1]} 3... c6 {[%clk 0:02:59.8]}
4. Nf3 {[%clk 0:02:58]} 4... d6 {[%clk 0:02:59.7]} 5. h3 {[%clk 0:02:56.4]} 5...
Nf6 {[%clk 0:02:58.7]} 6. Be3 {[%clk 0:02:55.8]} 6... O-O {[%clk 0:02:58.2]} 7.
a4 {[%clk 0:02:54.4]} 7... Nbd7 {[%clk 0:02:54.6]} 8. Bc4 {[%clk 0:02:49.4]}
8... e5 {[%clk 0:02:52.8]} 9. dxe5 {[%clk 0:02:48.9]} 9... Nxe5 {[%clk
0:02:51.9]} 10. Nxe5 {[%clk 0:02:46.1]} 10... dxe5 {[%clk 0:02:52.8]} 11. Qxd8
{[%clk 0:02:39.1]} 11... Rxd8 {[%clk 0:02:53.7]} 12. O-O {[%clk 0:02:36.9]}
12... Be6 {[%clk 0:02:47.1]} 13. Bxe6 {[%clk 0:02:35.9]} 13... fxe6 {[%clk
0:02:46.8]} 14. Rfd1 {[%clk 0:02:36.4]} 14... Rxd1+ {[%clk 0:02:43.5]} 15. Rxd1
{[%clk 0:02:35.4]} 15... Bf8 {[%clk 0:02:42.3]} 16. f3 {[%clk 0:02:25.8]} 16...
Kf7 {[%clk 0:02:39.3]} 17. Nb1 {[%clk 0:02:25.5]} 17... a6 {[%clk 0:02:34.2]}
18. Rd3 {[%clk 0:02:22.2]} 18... b5 {[%clk 0:02:25.4]} 19. Rc3 {[%clk
0:02:11.3]} 19... Rc8 {[%clk 0:02:23.2]} 20. Kf2 {[%clk 0:02:00.7]} 20... Nd7
{[%clk 0:02:19.3]} 21. axb5 {[%clk 0:01:58.3]} 21... axb5 {[%clk 0:02:18.4]} 22.
Nd2 {[%clk 0:01:57.4]} 22... Bb4 {[%clk 0:02:14.2]} 23. Rd3 {[%clk 0:01:56.9]}
23... Nc5 {[%clk 0:02:07.4]} 24. Bxc5 {[%clk 0:01:52.8]} 24... Bxc5+ {[%clk
0:02:08.3]} 25. Ke2 {[%clk 0:01:53.4]} 25... Ke7 {[%clk 0:02:06.5]} 26. Nb3
{[%clk 0:01:51]} 26... Bb6 {[%clk 0:02:06]} 27. Rc3 {[%clk 0:01:45.9]} 27... Kd6
{[%clk 0:02:04.3]} 28. Nc1 {[%clk 0:01:45.3]} 28... Ra8 {[%clk 0:01:59]} 29.
Rd3+ {[%clk 0:01:44.7]} 29... Ke7 {[%clk 0:01:57.1]} 30. Rd1 {[%clk 0:01:44.6]}
30... Bd4 {[%clk 0:01:53]} 31. Nd3 {[%clk 0:01:43.5]} 31... Ra2 {[%clk
0:01:34.5]} 32. Rb1 {[%clk 0:01:43.2]} 32... c5 {[%clk 0:01:27.7]} 33. Kd2
{[%clk 0:01:42.4]} 33... c4 {[%clk 0:01:26.7]} 34. c3 {[%clk 0:01:42.5]} 34...
cxd3 {[%clk 0:01:22.3]} 35. cxd4 {[%clk 0:01:41.9]} 35... exd4 {[%clk
0:01:22.4]} 36. e5 {[%clk 0:01:41.8]} 36... Kd7 {[%clk 0:00:59.9]} 37. Kxd3
{[%clk 0:01:41.3]} 37... Ra4 {[%clk 0:00:59.2]} 38. g4 {[%clk 0:01:33.6]} 38...
Kc6 {[%clk 0:00:55.9]} 39. b3 {[%clk 0:01:33.6]} 39... Rb4 {[%clk 0:00:50.3]}
40. f4 {[%clk 0:01:28.5]} 40... Kd5 {[%clk 0:00:50]} 41. Rb2 {[%clk 0:01:27.6]}
41... g5 {[%clk 0:00:48.6]} 42. fxg5 {[%clk 0:01:26.4]} 42... Kxe5 {[%clk
0:00:48.8]} 43. h4 {[%clk 0:01:26.1]} 43... Kf4 {[%clk 0:00:44.8]} 44. Rf2+
{[%clk 0:01:19.7]} 44... Kxg4 {[%clk 0:00:44.2]} 45. Rf7 {[%clk 0:01:19.5]}
45... Kxh4 {[%clk 0:00:42.8]} 46. Rxh7+ {[%clk 0:01:18.2]} 46... Kxg5 {[%clk
0:00:43]} 47. Re7 {[%clk 0:01:17.1]} 47... Kf5 {[%clk 0:00:42.4]} 48. Kc2 {[%clk
0:01:13.3]} 48... Ke5 {[%clk 0:00:36.9]} 49. Re8 {[%clk 0:01:12.5]} 49... Kd5
{[%clk 0:00:34.9]} 50. Rd8+ {[%clk 0:01:12.4]} 50... Ke4 {[%clk 0:00:34.9]} 51.
Rd7 {[%clk 0:01:12.3]} 51... e5 {[%clk 0:00:34]} 52. Rh7 {[%clk 0:01:11.2]}
52... d3+ {[%clk 0:00:27.3]} 53. Kc3 {[%clk 0:01:11.4]} 53... Rd4 {[%clk
0:00:27.2]} 54. Rh4+ {[%clk 0:01:11.2]} 54... Kd5 {[%clk 0:00:27]} 55. Rh1
{[%clk 0:01:10.1]} 55... d2 {[%clk 0:00:26.8]} 56. Rd1 {[%clk 0:01:10.1]} 56...
b4+ {[%clk 0:00:25.3]} 57. Kc2 {[%clk 0:01:10.1]} 57... e4 {[%clk 0:00:25.6]}
58. Rxd2 {[%clk 0:01:08.5]} 58... Rxd2+ {[%clk 0:00:25.4]} 59. Kxd2 {[%clk
0:01:09.4]} 59... Kd4 {[%clk 0:00:26.3]} 60. Ke2 {[%clk 0:01:09.5]} 60... Kc3
{[%clk 0:00:26.7]} 61. Ke3 {[%clk 0:01:09.6]} 61... Kxb3 {[%clk 0:00:27.6]} 0-1

[Event "*** Titled Tuesday Blitz"]
[Site "Chess.com"]
[Date "2020.04.28"]
[Round "5"]
[White "MFguimaraes"]
[Black "HanSchut"]
[Result "1/2-1/2"]
[WhiteElo "2401"]
[BlackElo "2240"]
[TimeControl "180+1"]
[EndTime "10:55:24 PDT"]
[Termination "Game drawn - insufficient material"]

1. e4 {[%clk 0:03:00.9]} 1... c5 {[%clk 0:02:59.8]} 2. Nf3 {[%clk 0:03:00.8]}
2... d6 {[%clk 0:02:59.4]} 3. d4 {[%clk 0:03:00.1]} 3... cxd4 {[%clk 0:03:00.3]}
4. Nxd4 {[%clk 0:03:00.8]} 4... Nf6 {[%clk 0:02:53]} 5. Nc3 {[%clk 0:03:01]}
5... a6 {[%clk 0:02:53.7]} 6. g3 {[%clk 0:03:01.2]} 6... g6 {[%clk 0:02:52.5]}
7. Bg2 {[%clk 0:03:01.1]} 7... Bg7 {[%clk 0:02:53.2]} 8. O-O {[%clk 0:03:01.8]}
8... O-O {[%clk 0:02:53.8]} 9. a4 {[%clk 0:03:02.4]} 9... Bd7 {[%clk 0:02:54.4]}
10. a5 {[%clk 0:03:01.9]} 10... Nc6 {[%clk 0:02:54.5]} 11. h3 {[%clk 0:03:00.9]}
11... Nxa5 {[%clk 0:02:50.3]} 12. Nd5 {[%clk 0:02:49.6]} 12... Nc6 {[%clk
0:02:32.1]} 13. c3 {[%clk 0:02:46.3]} 13... Re8 {[%clk 0:02:13.6]} 14. Be3
{[%clk 0:02:41.6]} 14... Nxd4 {[%clk 0:02:12.4]} 15. Nxf6+ {[%clk 0:02:40.7]}
15... Bxf6 {[%clk 0:02:09.8]} 16. cxd4 {[%clk 0:02:40.8]} 16... Qb6 {[%clk
0:01:40.6]} 17. e5 {[%clk 0:02:39.5]} 17... Bg7 {[%clk 0:01:35.9]} 18. d5 {[%clk
0:02:38.5]} 18... Qxb2 {[%clk 0:01:18.3]} 19. e6 {[%clk 0:02:37.7]} 19... Bb5
{[%clk 0:01:10.2]} 20. Rb1 {[%clk 0:02:32.6]} 20... Qf6 {[%clk 0:00:54.2]} 21.
Re1 {[%clk 0:02:29.7]} 21... Rac8 {[%clk 0:00:44.9]} 22. h4 {[%clk 0:02:25]}
22... fxe6 {[%clk 0:00:44.1]} 23. dxe6 {[%clk 0:02:23]} 23... Bc6 {[%clk
0:00:39.6]} 24. Bxc6 {[%clk 0:02:21.2]} 24... bxc6 {[%clk 0:00:38.8]} 25. Bg5
{[%clk 0:02:14]} 25... Qd4 {[%clk 0:00:33]} 26. Qf3 {[%clk 0:02:13.5]} 26... Rf8
{[%clk 0:00:30.4]} 27. Qe2 {[%clk 0:02:09.5]} 27... Qa7 {[%clk 0:00:28.7]} 28.
Be3 {[%clk 0:02:09.3]} 28... Bd4 {[%clk 0:00:27.2]} 29. h5 {[%clk 0:01:57.1]}
29... Bxe3 {[%clk 0:00:26.3]} 30. fxe3 {[%clk 0:01:57.7]} 30... Rf6 {[%clk
0:00:24.3]} 31. Qg4 {[%clk 0:01:54.2]} 31... Rcf8 {[%clk 0:00:19.2]} 32. Kg2
{[%clk 0:01:50.1]} 32... Qc5 {[%clk 0:00:17.8]} 33. hxg6 {[%clk 0:01:48.8]}
33... Rxg6 {[%clk 0:00:16.7]} 34. Qd4 {[%clk 0:01:45.1]} 34... Qd5+ {[%clk
0:00:09.8]} 35. Qxd5 {[%clk 0:01:44.9]} 35... cxd5 {[%clk 0:00:10.7]} 36. e4
{[%clk 0:01:43.7]} 36... Rxe6 {[%clk 0:00:09.9]} 37. exd5 {[%clk 0:01:44]} 37...
Rxe1 {[%clk 0:00:09.6]} 38. Rxe1 {[%clk 0:01:44.9]} 38... Kf7 {[%clk 0:00:08.5]}
39. Rh1 {[%clk 0:01:42]} 39... Kg6 {[%clk 0:00:07.4]} 40. Re1 {[%clk 0:01:42.5]}
40... Rf5 {[%clk 0:00:07]} 41. Re6+ {[%clk 0:01:41.5]} 41... Rf6 {[%clk
0:00:04.3]} 42. Rxe7 {[%clk 0:01:41.1]} 42... Kf5 {[%clk 0:00:04.2]} 43. Rxh7
{[%clk 0:01:40.6]} 43... Ke5 {[%clk 0:00:04.4]} 44. Ra7 {[%clk 0:01:39.7]} 44...
Kxd5 {[%clk 0:00:04.5]} 45. Rxa6 {[%clk 0:01:40.1]} 45... Ke6 {[%clk 0:00:05.4]}
46. g4 {[%clk 0:01:39.9]} 46... Rf4 {[%clk 0:00:03.2]} 47. Kg3 {[%clk
0:01:39.6]} 47... Rb4 {[%clk 0:00:03.8]} 48. Kh4 {[%clk 0:01:38.5]} 48... Ke5
{[%clk 0:00:04.3]} 49. Kg5 {[%clk 0:01:37.6]} 49... d5 {[%clk 0:00:04.8]} 50.
Ra8 {[%clk 0:01:36.4]} 50... Ke4 {[%clk 0:00:04.9]} 51. Re8+ {[%clk 0:01:36.1]}
51... Kd3 {[%clk 0:00:04.5]} 52. Kf5 {[%clk 0:01:35.9]} 52... d4 {[%clk
0:00:04.7]} 53. g5 {[%clk 0:01:36.4]} 53... Rb5+ {[%clk 0:00:05.1]} 54. Kf6
{[%clk 0:01:34.2]} 54... Kc2 {[%clk 0:00:04]} 55. g6 {[%clk 0:01:31.7]} 55...
Rb6+ {[%clk 0:00:04.3]} 56. Kf5 {[%clk 0:01:31.5]} 56... Rxg6 {[%clk 0:00:04]}
57. Kxg6 {[%clk 0:01:31]} 57... d3 {[%clk 0:00:04.6]} 58. Rc8+ {[%clk
0:01:27.9]} 58... Kb1 {[%clk 0:00:04.8]} 59. Kf5 {[%clk 0:01:26.8]} 59... d2
{[%clk 0:00:05.1]} 60. Rd8 {[%clk 0:01:25.5]} 60... Kc1 {[%clk 0:00:05.6]} 61.
Ke4 {[%clk 0:01:25.4]} 61... d1=Q {[%clk 0:00:06.1]} 62. Rxd1+ {[%clk
0:01:26.1]} 62... Kxd1 {[%clk 0:00:06.4]} 1/2-1/2

[Event "*** Titled Tuesday Blitz"]
[Site "Chess.com"]
[Date "2020.04.28"]
[Round "5"]
[White "abubakrtagelsir"]
[Black "andy_rekt"]
[Result "1-0"]
[WhiteElo "2360"]
[BlackElo "2203"]
[TimeControl "180+1"]
[EndTime "10:55:24 PDT"]
[Termination "abubakrtagelsir won by resignation"]

1. e4 {[%clk 0:02:59.3]} 1... c5 {[%clk 0:02:59.6]} 2. Nc3 {[%clk 0:02:58]} 2...
Nc6 {[%clk 0:02:59.7]} 3. f4 {[%clk 0:02:58]} 3... e6 {[%clk 0:02:58.7]} 4. Nf3
{[%clk 0:02:57.7]} 4... d5 {[%clk 0:02:55.2]} 5. exd5 {[%clk 0:02:55.9]} 5...
exd5 {[%clk 0:02:55.1]} 6. d4 {[%clk 0:02:55.6]} 6... Nf6 {[%clk 0:02:48.8]} 7.
Be3 {[%clk 0:02:55]} 7... Ng4 {[%clk 0:02:43.8]} 8. Bg1 {[%clk 0:02:54.4]} 8...
cxd4 {[%clk 0:02:38]} 9. Nxd4 {[%clk 0:02:50.9]} 9... Qe7+ {[%clk 0:02:36.5]}
10. Qe2 {[%clk 0:02:48.3]} 10... Qxe2+ {[%clk 0:02:27.9]} 11. Bxe2 {[%clk
0:02:47.7]} 11... Bb4 {[%clk 0:02:17.9]} 12. O-O-O {[%clk 0:02:34.8]} 12... Bxc3
{[%clk 0:02:16.3]} 13. bxc3 {[%clk 0:02:34.5]} 13... O-O {[%clk 0:02:13.7]} 14.
Nb5 {[%clk 0:02:25.4]} 14... Nf6 {[%clk 0:01:47.2]} 15. Nc7 {[%clk 0:02:24.1]}
15... Rb8 {[%clk 0:01:47.3]} 16. Nxd5 {[%clk 0:02:20.4]} 16... Nxd5 {[%clk
0:01:46.7]} 17. Rxd5 {[%clk 0:02:19.8]} 17... Be6 {[%clk 0:01:47.4]} 18. Rb5
{[%clk 0:02:10.2]} 18... a6 {[%clk 0:01:26.8]} 19. Rb6 {[%clk 0:02:04.9]} 19...
Na5 {[%clk 0:01:23.9]} 20. a4 {[%clk 0:01:54.4]} 20... Rfc8 {[%clk 0:01:21.6]}
21. Bd4 {[%clk 0:01:50.6]} 21... Nc4 {[%clk 0:01:08.9]} 22. Rb4 {[%clk 0:01:44]}
22... a5 {[%clk 0:00:55.1]} 23. Rb5 {[%clk 0:01:28.1]} 23... Bd7 {[%clk
0:00:23.7]} 24. Rc5 {[%clk 0:01:11.1]} 24... Rxc5 {[%clk 0:00:14.5]} 25. Bxc5
{[%clk 0:01:10.3]} 25... b6 {[%clk 0:00:14.8]} 26. Bd4 {[%clk 0:00:55.3]} 26...
Nd6 {[%clk 0:00:07.7]} 27. Rd1 {[%clk 0:00:46.9]} 27... Nf5 {[%clk 0:00:05.7]}
28. Be5 {[%clk 0:00:44.5]} 28... Rb7 {[%clk 0:00:04.4]} 29. Bf3 {[%clk
0:00:43.3]} 29... Ra7 {[%clk 0:00:04.1]} 30. Bb8 {[%clk 0:00:42.8]} 30... Ra8
{[%clk 0:00:03.4]} 31. Bxa8 {[%clk 0:00:42]} 1-0

[Event "*** Titled Tuesday Blitz"]
[Site "Chess.com"]
[Date "2020.04.28"]
[Round "5"]
[White "blitzking1729"]
[Black "Dr-Bassem"]
[Result "1/2-1/2"]
[WhiteElo "2570"]
[BlackElo "2790"]
[TimeControl "180+1"]
[EndTime "10:55:25 PDT"]
[Termination "Game drawn by agreement"]

1. d4 {[%clk 0:02:57]} 1... e6 {[%clk 0:02:56.1]} 2. Nf3 {[%clk 0:02:55.7]} 2...
f5 {[%clk 0:02:56.1]} 3. Bg5 {[%clk 0:02:54.9]} 3... Be7 {[%clk 0:02:55.4]} 4.
Bxe7 {[%clk 0:02:54.5]} 4... Qxe7 {[%clk 0:02:56.3]} 5. Nbd2 {[%clk 0:02:54.1]}
5... Nf6 {[%clk 0:02:56.2]} 6. c3 {[%clk 0:02:53.4]} 6... O-O {[%clk 0:02:56]}
7. e3 {[%clk 0:02:52.8]} 7... d6 {[%clk 0:02:55.4]} 8. Bc4 {[%clk 0:02:51.1]}
8... Kh8 {[%clk 0:02:55.1]} 9. O-O {[%clk 0:02:49.5]} 9... e5 {[%clk 0:02:54.9]}
10. dxe5 {[%clk 0:02:48.4]} 10... dxe5 {[%clk 0:02:55.8]} 11. e4 {[%clk
0:02:48.3]} 11... f4 {[%clk 0:02:44.8]} 12. Qb3 {[%clk 0:02:47.7]} 12... Nc6
{[%clk 0:02:37.9]} 13. Bd5 {[%clk 0:02:39.6]} 13... Nd8 {[%clk 0:02:23]} 14. Qb4
{[%clk 0:02:34.4]} 14... Re8 {[%clk 0:01:43.9]} 15. Qxe7 {[%clk 0:02:30.9]}
15... Rxe7 {[%clk 0:01:44.8]} 16. Bb3 {[%clk 0:02:29.3]} 16... Bg4 {[%clk
0:01:33.3]} 17. Rfe1 {[%clk 0:02:28]} 17... h6 {[%clk 0:01:28.2]} 18. Nh4 {[%clk
0:02:22]} 18... Kh7 {[%clk 0:01:22.6]} 19. h3 {[%clk 0:02:20.6]} 19... Bd7
{[%clk 0:01:12.3]} 20. Rad1 {[%clk 0:02:14.4]} 20... g5 {[%clk 0:00:39.6]} 21.
Nf5 {[%clk 0:02:12.3]} 21... Bxf5 {[%clk 0:00:38.7]} 22. exf5 {[%clk 0:02:13.2]}
22... Nc6 {[%clk 0:00:37.3]} 23. Be6 {[%clk 0:02:11.2]} 23... Rd8 {[%clk
0:00:35.6]} 24. b4 {[%clk 0:02:02.8]} 24... a6 {[%clk 0:00:27.7]} 25. a4 {[%clk
0:02:02.1]} 25... b5 {[%clk 0:00:21]} 26. axb5 {[%clk 0:02:01.6]} 26... axb5
{[%clk 0:00:21.9]} 27. Ne4 {[%clk 0:01:39.2]} 27... Nxe4 {[%clk 0:00:20.5]} 28.
Rxd8 {[%clk 0:01:38.6]} 28... Nxd8 {[%clk 0:00:19.1]} 29. Rxe4 {[%clk
0:01:38.6]} 29... Nxe6 {[%clk 0:00:09.5]} 30. Rxe5 {[%clk 0:01:37.5]} 30... Kg7
{[%clk 0:00:08]} 31. fxe6 {[%clk 0:01:36.9]} 31... c6 {[%clk 0:00:08.3]} 32. g3
{[%clk 0:01:32.2]} 32... fxg3 {[%clk 0:00:06.8]} 33. fxg3 {[%clk 0:01:32.2]}
33... Kf6 {[%clk 0:00:07.4]} 34. Rc5 {[%clk 0:01:26.2]} 34... Rxe6 {[%clk
0:00:08.3]} 35. c4 {[%clk 0:01:26.6]} 35... bxc4 {[%clk 0:00:07.4]} 36. Rxc4
{[%clk 0:01:27.1]} 36... Ke5 {[%clk 0:00:07.4]} 37. Rc5+ {[%clk 0:01:20.8]}
37... Kd6 {[%clk 0:00:07.7]} 38. Kf2 {[%clk 0:01:19.1]} 38... Re4 {[%clk
0:00:07.4]} 39. Rf5 {[%clk 0:01:14.8]} 39... Rxb4 {[%clk 0:00:07.8]} 40. Rf6+
{[%clk 0:01:15.1]} 40... Kd5 {[%clk 0:00:06.9]} 41. Rxh6 {[%clk 0:01:15.2]}
41... g4 {[%clk 0:00:06.8]} 42. Rh5+ {[%clk 0:01:14.2]} 42... Ke4 {[%clk
0:00:05.5]} 43. hxg4 {[%clk 0:01:13.1]} 43... Rb2+ {[%clk 0:00:06.1]} 44. Ke1
{[%clk 0:01:13]} 44... Kf3 {[%clk 0:00:05.7]} 45. Rc5 {[%clk 0:01:12.2]} 45...
Kxg4 {[%clk 0:00:05.6]} 46. Rxc6 {[%clk 0:01:12.1]} 46... Kxg3 {[%clk
0:00:06.1]} 47. Kd1 {[%clk 0:01:12.2]} 47... Kf4 {[%clk 0:00:06]} 48. Kc1 {[%clk
0:01:11.6]} 48... Rb5 {[%clk 0:00:06.5]} 49. Rc4+ {[%clk 0:01:11.3]} 49... Kf5
{[%clk 0:00:05.9]} 50. Kc2 {[%clk 0:01:11.4]} 50... Re5 {[%clk 0:00:05.4]}
1/2-1/2

[Event "*** Titled Tuesday Blitz"]
[Site "Chess.com"]
[Date "2020.04.28"]
[Round "5"]
[White "jlandaw"]
[Black "Petrosyan_Tigran"]
[Result "0-1"]
[WhiteElo "2397"]
[BlackElo "2580"]
[TimeControl "180+1"]
[EndTime "10:55:28 PDT"]
[Termination "Petrosyan_Tigran won on time"]

1. e4 {[%clk 0:03:00.9]} 1... e5 {[%clk 0:02:57.5]} 2. Nf3 {[%clk 0:03:00.5]}
2... Nc6 {[%clk 0:02:57.6]} 3. Bb5 {[%clk 0:03:00.2]} 3... a6 {[%clk 0:02:58]}
4. Ba4 {[%clk 0:02:59]} 4... Nf6 {[%clk 0:02:58]} 5. O-O {[%clk 0:02:59.2]} 5...
Nxe4 {[%clk 0:02:58.1]} 6. d4 {[%clk 0:02:59]} 6... b5 {[%clk 0:02:58.1]} 7. Bb3
{[%clk 0:02:58.9]} 7... d5 {[%clk 0:02:58.4]} 8. dxe5 {[%clk 0:02:59.2]} 8...
Be6 {[%clk 0:02:58.9]} 9. Nbd2 {[%clk 0:02:58.8]} 9... Be7 {[%clk 0:02:58.7]}
10. c3 {[%clk 0:02:58.8]} 10... O-O {[%clk 0:02:56.5]} 11. Bc2 {[%clk
0:02:57.9]} 11... f5 {[%clk 0:02:56]} 12. exf6 {[%clk 0:02:56.7]} 12... Nxf6
{[%clk 0:02:52.3]} 13. Ng5 {[%clk 0:02:41.5]} 13... Bg4 {[%clk 0:02:49.3]} 14.
f3 {[%clk 0:02:33.4]} 14... Bc8 {[%clk 0:02:42.5]} 15. Re1 {[%clk 0:01:37.7]}
15... Qd6 {[%clk 0:02:34.5]} 16. Qe2 {[%clk 0:01:37.5]} 16... Re8 {[%clk
0:02:15.2]} 17. Qd3 {[%clk 0:00:36.2]} 17... g6 {[%clk 0:01:45.7]} 18. Nb3
{[%clk 0:00:27.6]} 18... Bf5 {[%clk 0:01:37.1]} 19. Qd2 {[%clk 0:00:24.5]} 19...
Bxc2 {[%clk 0:01:36.9]} 20. Qxc2 {[%clk 0:00:25.4]} 20... Bf8 {[%clk 0:01:36.4]}
21. Bd2 {[%clk 0:00:23.1]} 21... d4 {[%clk 0:01:34.1]} 22. cxd4 {[%clk
0:00:12.9]} 22... Nxd4 {[%clk 0:01:35]} 23. Nxd4 {[%clk 0:00:13.5]} 23... Qxd4+
{[%clk 0:01:32.6]} 24. Kh1 {[%clk 0:00:13.8]} 24... c5 {[%clk 0:01:29.6]} 25.
Bc3 {[%clk 0:00:12.9]} 25... Qd6 {[%clk 0:01:19.5]} 26. Rad1 {[%clk 0:00:12.4]}
26... Qc6 {[%clk 0:01:16.1]} 27. Bxf6 {[%clk 0:00:06.9]} 27... Qxf6 {[%clk
0:01:14.4]} 28. Ne4 {[%clk 0:00:07.3]} 28... Qc6 {[%clk 0:01:08.1]} 29. a4
{[%clk 0:00:07.5]} 29... c4 {[%clk 0:01:06.6]} 30. axb5 {[%clk 0:00:04.4]} 30...
axb5 {[%clk 0:01:07.5]} 31. Qc3 {[%clk 0:00:04.6]} 31... Bg7 {[%clk 0:01:07]}
32. Qb4 {[%clk 0:00:05.2]} 32... Rad8 {[%clk 0:01:05.7]} 33. Rxd8 {[%clk
0:00:04.3]} 33... Rxd8 {[%clk 0:01:06.6]} 34. Qe7 {[%clk 0:00:04.4]} 34... Rf8
{[%clk 0:00:49.1]} 35. Qb4 {[%clk 0:00:03.7]} 35... Qd5 {[%clk 0:00:46.7]} 36.
h3 {[%clk 0:00:01.8]} 36... Rd8 {[%clk 0:00:42.3]} 37. Re2 {[%clk 0:00:02.2]}
37... Qd4 {[%clk 0:00:39.2]} 38. Qxb5 {[%clk 0:00:02]} 38... Qd1+ {[%clk
0:00:38]} 39. Kh2 {[%clk 0:00:02.4]} 39... Qxe2 {[%clk 0:00:38.2]} 40. Qb6
{[%clk 0:00:02.8]} 40... Be5+ {[%clk 0:00:36.3]} 0-1

[Event "*** Titled Tuesday Blitz"]
[Site "Chess.com"]
[Date "2020.04.28"]
[Round "5"]
[White "louis198"]
[Black "NotFischer"]
[Result "1-0"]
[WhiteElo "2472"]
[BlackElo "2159"]
[TimeControl "180+1"]
[EndTime "10:55:29 PDT"]
[Termination "louis198 won by resignation"]

1. d4 {[%clk 0:03:00.9]} 1... Nf6 {[%clk 0:02:59.5]} 2. Bf4 {[%clk 0:02:59.8]}
2... d5 {[%clk 0:02:59.2]} 3. e3 {[%clk 0:02:59.5]} 3... c5 {[%clk 0:02:59.5]}
4. Nf3 {[%clk 0:02:59.5]} 4... Nc6 {[%clk 0:02:59.5]} 5. c3 {[%clk 0:02:56.2]}
5... cxd4 {[%clk 0:02:59.2]} 6. exd4 {[%clk 0:02:55.9]} 6... Bg4 {[%clk
0:02:59.5]} 7. Nbd2 {[%clk 0:02:54.7]} 7... e6 {[%clk 0:02:59.2]} 8. Qb3 {[%clk
0:02:54.1]} 8... Qc8 {[%clk 0:02:36.5]} 9. Bb5 {[%clk 0:02:50.4]} 9... Bxf3
{[%clk 0:02:22]} 10. Nxf3 {[%clk 0:02:49.1]} 10... a6 {[%clk 0:02:22.1]} 11. Bd3
{[%clk 0:02:47.7]} 11... Be7 {[%clk 0:02:17]} 12. O-O {[%clk 0:02:47.1]} 12...
O-O {[%clk 0:02:16.7]} 13. h3 {[%clk 0:02:46.9]} 13... b5 {[%clk 0:02:16.9]} 14.
a4 {[%clk 0:02:40.7]} 14... Na5 {[%clk 0:02:16.7]} 15. Qd1 {[%clk 0:02:38.5]}
15... Nc4 {[%clk 0:02:15.5]} 16. b3 {[%clk 0:02:35.7]} 16... Nb2 {[%clk
0:02:15.2]} 17. Qc2 {[%clk 0:02:29.4]} 17... Nxd3 {[%clk 0:02:15]} 18. Qxd3
{[%clk 0:02:30]} 18... Qb7 {[%clk 0:01:52.6]} 19. axb5 {[%clk 0:02:07.5]} 19...
axb5 {[%clk 0:01:52.3]} 20. Nd2 {[%clk 0:02:06.4]} 20... Rfc8 {[%clk 0:01:47.8]}
21. b4 {[%clk 0:01:43.6]} 21... Qc6 {[%clk 0:01:41.2]} 22. Nb3 {[%clk
0:01:23.1]} 22... Rxa1 {[%clk 0:01:36.6]} 23. Rxa1 {[%clk 0:01:21.8]} 23... g5
{[%clk 0:01:00]} 24. Bd2 {[%clk 0:01:08.1]} 24... Ne4 {[%clk 0:01:00]} 25. Nc5
{[%clk 0:01:08.4]} 25... Bxc5 {[%clk 0:00:48]} 26. dxc5 {[%clk 0:00:54.4]} 26...
h6 {[%clk 0:00:40.4]} 27. Ra5 {[%clk 0:00:51.1]} 27... Rb8 {[%clk 0:00:38.1]}
28. Be1 {[%clk 0:00:49.1]} 28... e5 {[%clk 0:00:28.7]} 29. f3 {[%clk 0:00:47.2]}
29... Nf6 {[%clk 0:00:28.4]} 30. Bg3 {[%clk 0:00:46.4]} 30... Nd7 {[%clk
0:00:25]} 31. Qf5 {[%clk 0:00:43.7]} 31... Qe6 {[%clk 0:00:18.9]} 32. Qxe6
{[%clk 0:00:43]} 32... fxe6 {[%clk 0:00:19.8]} 33. c6 {[%clk 0:00:43.4]} 33...
Nb6 {[%clk 0:00:14.9]} 34. Bxe5 {[%clk 0:00:42.9]} 34... Rc8 {[%clk 0:00:15.2]}
35. c7 {[%clk 0:00:30.2]} 35... Nc4 {[%clk 0:00:15.2]} 36. Rxb5 {[%clk
0:00:30.5]} 36... Nxe5 {[%clk 0:00:15]} 37. Rb8 {[%clk 0:00:30.7]} 1-0

[Event "*** Titled Tuesday Blitz"]
[Site "Chess.com"]
[Date "2020.04.28"]
[Round "5"]
[White "Gandrade2"]
[Black "Generalas"]
[Result "0-1"]
[WhiteElo "2002"]
[BlackElo "2356"]
[TimeControl "180+1"]
[EndTime "10:55:29 PDT"]
[Termination "Generalas won on time"]

1. b3 {[%clk 0:03:00.9]} 1... e5 {[%clk 0:02:57.7]} 2. Bb2 {[%clk 0:03:00.9]}
2... Nc6 {[%clk 0:02:57.2]} 3. e3 {[%clk 0:03:01.4]} 3... a6 {[%clk 0:02:56.4]}
4. Nf3 {[%clk 0:03:00]} 4... d6 {[%clk 0:02:55.8]} 5. d4 {[%clk 0:03:00.2]} 5...
e4 {[%clk 0:02:55]} 6. Nfd2 {[%clk 0:02:59.8]} 6... f5 {[%clk 0:02:53.9]} 7. c4
{[%clk 0:02:56.4]} 7... Nf6 {[%clk 0:02:53.2]} 8. Nc3 {[%clk 0:02:55.5]} 8...
Be7 {[%clk 0:02:50.6]} 9. Be2 {[%clk 0:02:55.2]} 9... O-O {[%clk 0:02:50.2]} 10.
O-O {[%clk 0:02:54.5]} 10... Qe8 {[%clk 0:02:49.3]} 11. f3 {[%clk 0:02:49.2]}
11... Qg6 {[%clk 0:02:28.3]} 12. Qe1 {[%clk 0:02:31.3]} 12... Kh8 {[%clk
0:02:18]} 13. Nd5 {[%clk 0:02:17.4]} 13... Nxd5 {[%clk 0:02:16.2]} 14. cxd5
{[%clk 0:02:16.7]} 14... Nb4 {[%clk 0:02:16.1]} 15. fxe4 {[%clk 0:02:04.8]}
15... Nc2 {[%clk 0:02:11.8]} 16. Qb1 {[%clk 0:01:29.6]} 16... Nxe3 {[%clk
0:01:43.3]} 17. Rf2 {[%clk 0:01:29.7]} 17... Bh4 {[%clk 0:01:43.1]} 18. Qe1
{[%clk 0:01:05.7]} 18... Nxg2 {[%clk 0:01:09.2]} 19. Rxg2 {[%clk 0:00:57.7]}
19... Bxe1 {[%clk 0:01:08.6]} 20. Rxg6 {[%clk 0:00:57.1]} 20... Bxd2 {[%clk
0:00:57.1]} 21. Rg2 {[%clk 0:00:41.7]} 21... fxe4 {[%clk 0:00:52.3]} 22. Bc1
{[%clk 0:00:24.9]} 22... Bc3 {[%clk 0:00:49.1]} 23. Rb1 {[%clk 0:00:24.2]} 23...
Bxd4+ {[%clk 0:00:49.1]} 24. Kh1 {[%clk 0:00:20.3]} 24... Bh3 {[%clk 0:00:43.8]}
25. Rg3 {[%clk 0:00:20.6]} 25... Bf1 {[%clk 0:00:40.8]} 26. Bg4 {[%clk
0:00:13.7]} 26... Bd3 {[%clk 0:00:36.7]} 27. Bb2 {[%clk 0:00:03.5]} 27... Bxb2
{[%clk 0:00:17.7]} 28. Rxb2 {[%clk 0:00:03.6]} 28... Rf4 {[%clk 0:00:17.2]} 29.
Be2 {[%clk 0:00:02.6]} 29... Bxe2 {[%clk 0:00:15.7]} 30. Rxe2 {[%clk 0:00:02.4]}
30... Raf8 {[%clk 0:00:16]} 0-1